bitfinex/quotes_BTCUSD_20250903
["timestamp","ask_amount","ask_price","bid_price","bid_amount"]
[1756935172337,1.23358931,112160.0,112150.0,0.0004]
[1756935172549,1.38202931,112160.0,112150.0,0.0004]
[1756935175863,1.23058931,112160.0,112150.0,0.00246]
[1756935176079,1.35173828,112160.0,112150.0,0.00569]
[1756935176280,1.35375828,112160.0,112150.0,0.00246]
[1756935176638,1.74324173,112160.0,112150.0,0.0004]
[1756935178072,1.74424173,112160.0,112150.0,0.0004]
[1756935178252,1.74524173,112160.0,112150.0,0.0004]
[1756935178669,1.74620173,112160.0,112150.0,0.0004]
[1756935179533,1.72228121,112160.0,112150.0,0.0004]
[1756935180267,1.57284121,112160.0,112150.0,0.0004]
[1756935180499,1.72228121,112160.0,112150.0,0.0004]
[1756935181055,1.74620173,112160.0,112150.0,0.0004]
[1756935182359,1.70565889,112160.0,112150.0,0.0004]
[1756935184402,1.34448647,112160.0,112150.0,0.0004]
[1756935185138,0.39750833,112160.0,112150.0,0.00569]
[1756935185357,0.9238842,112160.0,112150.0,0.00569]
[1756935185761,1.30599544,112160.0,112150.0,0.00569]
[1756935186010,1.30801544,112160.0,112150.0,0.00569]
[1756935188022,0.5836506,112160.0,112150.0,0.00569]
[1756935188240,1.30599544,112160.0,112150.0,0.00569]
[1756935189443,1.30610639,112160.0,112150.0,0.00569]
[1756935189635,1.30825639,112160.0,112150.0,0.00569]
[1756935190834,1.31144639,112160.0,112150.0,0.00246]
[1756935191380,1.16208639,112160.0,112150.0,0.00246]
[1756935191604,1.31140639,112160.0,112150.0,0.0004]
[1756935192008,1.33671742,112160.0,112150.0,0.0004]
[1756935198206,1.33673711,112160.0,112150.0,0.0004]
[1756935199238,1.34031245,112160.0,112150.0,0.0004]
[1756935205773,1.34864737,112160.0,112150.0,0.0004]
[1756935208636,1.34864787,112160.0,112150.0,0.0004]
[1756935210875,1.34031295,112160.0,112150.0,0.0004]
[1756935211180,1.34864778,112160.0,112150.0,0.0004]
[1756935211384,1.36531749,112160.0,112150.0,0.0004]
[1756935212575,1.43387749,112160.0,112150.0,0.0004]
[1756935215400,1.40887293,112160.0,112150.0,0.0004]
[1756935215609,1.40887281,112160.0,112150.0,0.0004]
[1756935216142,1.41720763,112160.0,112150.0,0.0004]
[1756935216798,1.43387725,112160.0,112150.0,0.0004]
[1756935219748,1.79504967,112160.0,112150.0,0.0004]
[1756935221689,1.79472967,112160.0,112150.0,0.0004]
[1756935221885,1.79473681,112160.0,112150.0,0.0004]
[1756935224611,0.71122238,112160.0,112150.0,0.0004]
[1756935224817,1.79473964,112160.0,112150.0,0.0004]
[1756935226521,1.43356722,112160.0,112150.0,0.0004]
[1756935227226,1.79473964,112160.0,112150.0,0.0004]
[1756935227562,1.6746697,112160.0,112150.0,0.0004]
[1756935231539,0.71122238,112160.0,112150.0,0.0004]
[1756935231723,1.6746697,112160.0,112150.0,0.0004]
[1756935233150,1.67467145,112160.0,112150.0,0.0004]
[1756935237826,1.52248145,112160.0,112150.0,0.00239]
[1756935238030,1.65464706,112160.0,112150.0,0.00239]
[1756935238461,1.14983458,112160.0,112150.0,0.00559]
[1756935238649,1.15618061,112160.0,112150.0,0.00559]
[1756935238859,1.65457725,112160.0,112150.0,0.00239]
[1756935241028,1.67125452,112160.0,112150.0,0.00239]
[1756935241463,1.66291567,112160.0,112150.0,0.00239]
[1756935241632,1.6462384,112160.0,112150.0,0.00239]
[1756935245860,1.6441584,112160.0,112150.0,0.00559]
[1756935246271,1.6462384,112160.0,112150.0,0.00559]
[1756935246475,1.6462384,112160.0,112150.0,0.00239]
[1756935250206,1.65774509,112160.0,112150.0,0.00239]
[1756935250750,1.65774543,112160.0,112150.0,0.00239]
[1756935251518,1.6494084,112160.0,112150.0,0.00239]
[1756935251725,1.65774543,112160.0,112150.0,0.00239]
[1756935257345,1.65774543,112160.0,112150.0,0.0004]
[1756935258260,1.6494084,112160.0,112150.0,0.0004]
[1756935259158,1.65774586,112160.0,112150.0,0.0004]
[1756935262483,1.65774622,112160.0,112150.0,0.0004]
[1756935263173,1.64283427,112160.0,112150.0,0.0004]
[1756935263558,1.65117155,112160.0,112150.0,0.0004]
[1756935263765,1.65742451,112160.0,112150.0,0.0004]
[1756935264581,1.64908723,112160.0,112150.0,0.0004]
[1756935265522,1.65742506,112160.0,112150.0,0.0004]
[1756935270056,1.65742544,112160.0,112150.0,0.0004]
[1756935275765,1.64908723,112160.0,112150.0,0.0004]
[1756935277454,1.65742535,112160.0,112150.0,0.0004]
[1756935278029,1.64908723,112160.0,112150.0,0.0004]
[1756935278243,1.65742535,112160.0,112150.0,0.0004]
[1756935279053,2.014101,112160.0,112150.0,1e-08]
[1756935279266,0.22319485,112150.0,112140.0,0.0004]
[1756935279471,1.08899412,112150.0,112140.0,0.0004]
[1756935279705,1.09415412,112150.0,112140.0,0.0004]
[1756935279922,1.12097322,112150.0,112140.0,0.0004]
[1756935280464,1.12101549,112150.0,112140.0,0.0004]
[1756935283423,1.11476706,112150.0,112140.0,0.0004]
[1756935286883,1.11464706,112150.0,112140.0,0.0004]
[1756935287566,1.3557319,112150.0,112140.0,0.0004]
[1756935293082,0.45742458,112150.0,112140.0,0.00242]
[1756935293299,0.80783873,112150.0,112140.0,0.00556]
[1756935293818,0.80195845,112150.0,112140.0,0.00556]
[1756935294161,0.82540542,112150.0,112140.0,0.00556]
[1756935295636,0.67608542,112150.0,112140.0,0.00556]
[1756935295786,0.27029538,112150.0,112140.0,0.18390849]
[1756935296009,0.78093963,112150.0,112140.0,0.18390849]
[1756935296449,0.78093963,112150.0,112140.0,0.21072086]
[1756935297489,0.78093963,112150.0,112140.0,0.03237237]
[1756935297729,0.78093963,112150.0,112140.0,0.03460172]
[1756935299127,0.27029538,112150.0,112140.0,0.21295021]
[1756935299325,0.78089963,112150.0,112140.0,0.21072086]
[1756935300493,0.63169963,112150.0,112140.0,0.21072086]
[1756935300721,0.78089963,112150.0,112140.0,0.21072086]
[1756935302913,0.63169963,112150.0,112140.0,0.21072086]
[1756935303530,0.78085963,112150.0,112140.0,0.21072086]
[1756935303745,0.63169963,112150.0,112140.0,0.21072086]
[1756935303951,0.41945538,112150.0,112140.0,0.21072086]
[1756935304159,0.63169963,112150.0,112140.0,0.21072086]
[1756935304367,0.78085963,112150.0,112140.0,0.03237237]
[1756935304566,0.78085963,112150.0,112140.0,0.03460172]
[1756935304929,0.78081963,112150.0,112140.0,0.03460172]
[1756935305766,0.78081963,112150.0,112140.0,0.21295021]
[1756935305978,0.78081963,112150.0,112140.0,0.21072086]
[1756935306406,0.27029538,112150.0,112140.0,0.21072086]
[1756935306640,0.41941538,112150.0,112140.0,0.21072086]
[1756935307894,0.27029538,112150.0,112140.0,0.21072086]
[1756935308106,0.41937538,112150.0,112140.0,0.21072086]
[1756935308533,0.27029538,112150.0,112140.0,0.21072086]
[1756935308744,0.41941538,112150.0,112140.0,0.21072086]
[1756935313368,0.17837939,112150.0,112140.0,0.21072086]
[1756935313584,0.1490868,112150.0,112140.0,0.57212511]
[1756935314019,4.68e-05,112150.0,112140.0,0.57212511]
[1756935315689,4.68e-05,112150.0,112140.0,0.72116511]
[1756935325963,4.68e-05,112150.0,112140.0,0.35976086]
[1756935326159,4.68e-05,112150.0,112140.0,0.72116511]
[1756935330326,4.68e-05,112150.0,112140.0,0.57212511]
[1756935330559,4.68e-05,112150.0,112140.0,0.72096511]
[1756935331138,4.68e-05,112150.0,112140.0,0.72092511]
[1756935334126,0.0021668,112150.0,112140.0,0.35634086]
[1756935334380,0.18049939,112150.0,112140.0,0.71774511]
[1756935335656,0.18354939,112150.0,112140.0,0.71774511]
[1756935337427,0.18049939,112150.0,112140.0,0.71774511]
[1756935339109,0.18049939,112150.0,112140.0,0.72085511]
[1756935339328,0.27540538,112150.0,112140.0,0.02721237]
[1756935339536,0.63680963,112150.0,112140.0,0.0004]
[1756935340354,0.27540538,112150.0,112140.0,0.0004]
[1756935340574,0.63680963,112150.0,112140.0,0.0004]
[1756935342883,0.27540538,112150.0,112140.0,0.0004]
[1756935343100,0.63680963,112150.0,112140.0,0.0004]
[1756935344243,0.27540538,112150.0,112140.0,0.0004]
[1756935344451,0.63680963,112150.0,112140.0,0.0004]
[1756935347512,0.75704198,112150.0,112140.0,0.0004]
[1756935352506,0.41893538,112150.0,112140.0,0.00241]
[1756935352664,0.90570198,112150.0,112140.0,0.0004]
[1756935353222,0.42406538,112150.0,112140.0,0.0004]
[1756935358545,0.90570198,112150.0,112140.0,0.0004]
[1756935362534,0.42406538,112150.0,112140.0,0.0004]
[1756935362746,0.42406538,112150.0,112140.0,0.0272121]
[1756935386504,0.42406538,112150.0,112140.0,0.0004]
[1756935391578,0.46839775,112150.0,112140.0,0.0004]
[1756935392633,0.46839775,112150.0,112140.0,0.02721211]
[1756935393590,0.46839775,112150.0,112140.0,0.0004]
[1756935395600,0.46839775,112150.0,112140.0,0.02721211]
[1756935395806,0.46839775,112150.0,112140.0,0.0004]
[1756935399206,0.42406538,112150.0,112140.0,0.0004]
[1756935400280,0.42406538,112150.0,112140.0,0.0272121]
[1756935401290,0.90570198,112150.0,112140.0,0.0272121]
[1756935402036,0.42406538,112150.0,112140.0,0.0272121]
[1756935409703,0.78527964,112150.0,112140.0,0.0272121]
[1756935409846,0.87719563,112150.0,112140.0,0.0272121]
[1756935411464,0.78527964,112150.0,112140.0,0.0272121]
[1756935416066,0.78527964,112150.0,112140.0,0.0004]
[1756935417832,1.58028964,112150.0,112140.0,0.0004]
[1756935418243,1.64923857,112150.0,112140.0,0.0004]
[1756935418384,1.6429862,112150.0,112140.0,0.0004]
[1756935418616,1.69902226,112150.0,112140.0,0.0004]
[1756935418990,1.7156826,112150.0,112140.0,0.0004]
[1756935419198,1.71821503,112150.0,112140.0,0.0004]
[1756935419406,1.69902226,112150.0,112140.0,0.0004]
[1756935420922,2.0118896,112150.0,112140.0,1e-08]
[1756935421122,2.0118896,112150.0,112110.0,0.02681664]
[1756935421123,0.1783803,112120.0,112110.0,0.02681664]
[1756935421362,0.81998682,112120.0,112110.0,0.02681664]
[1756935421561,0.17839621,112110.0,112100.0,0.00321]
[1756935421760,0.2703122,112110.0,112100.0,0.00321]
[1756935422067,0.2703122,112110.0,112100.0,0.03200978]
[1756935422866,0.2703122,112110.0,112100.0,0.03247992]
[1756935423287,0.2703122,112110.0,112100.0,0.03547992]
[1756935423515,0.2703122,112110.0,112100.0,0.03947992]
[1756935425551,0.63351646,112110.0,112100.0,0.03626992]
[1756935425722,0.2703122,112110.0,112100.0,0.03947992]
[1756935428429,0.63351646,112110.0,112100.0,0.03947992]
[1756935428636,0.63660646,112110.0,112100.0,0.03626992]
[1756935428847,0.63660646,112110.0,112100.0,0.00945014]
[1756935431351,0.63660646,112110.0,112100.0,0.00747014]
[1756935439876,0.64607138,112110.0,112100.0,0.00747014]
[1756935444249,0.79455138,112110.0,112100.0,0.00747014]
[1756935444452,0.88646737,112110.0,112100.0,0.00747014]
[1756935450130,0.92581476,112110.0,112100.0,0.00747014]
[1756935451354,0.94675358,112110.0,112100.0,0.00747014]
[1756935452857,0.94675358,112110.0,112100.0,0.00347014]
[1756935452984,0.94675358,112110.0,112100.0,0.00647014]
[1756935453199,1.28675358,112110.0,112100.0,0.00347014]
[1756935453762,1.28675358,112110.0,112100.0,0.00547014]
[1756935458067,1.31165352,112110.0,112100.0,0.00547014]
[1756935459339,1.16317352,112110.0,112100.0,0.00547014]
[1756935459546,1.31165352,112110.0,112100.0,0.00547014]
[1756935459784,1.33479455,112110.0,112100.0,0.00547014]
[1756935465213,0.97358029,112110.0,112100.0,0.00547014]
[1756935465452,1.33479455,112110.0,112100.0,0.00547014]
[1756935469592,1.4556395,112110.0,112100.0,0.00547014]
[1756935475231,1.43073956,112110.0,112100.0,0.00547014]
[1756935475443,1.40759853,112110.0,112100.0,0.00547014]
[1756935475987,1.4556395,112110.0,112100.0,0.00547014]
[1756935481099,0.24739192,112100.0,112090.0,0.0004]
[1756935481317,1.06176311,112100.0,112090.0,0.00054107]
[1756935481531,1.06388311,112100.0,112090.0,0.00054107]
[1756935481792,1.06684311,112100.0,112090.0,0.00054107]
[1756935482644,1.06684311,112100.0,112090.0,0.00254107]
[1756935483039,1.06684311,112100.0,112090.0,0.00054107]
[1756935483719,1.04194317,112100.0,112090.0,0.00054107]
[1756935487291,1.40684311,112100.0,112090.0,0.00054107]
[1756935489619,0.53938278,112080.0,112070.0,0.00302]
[1756935489845,1.31975946,112080.0,112070.0,0.0031611]
[1756935490045,1.31975946,112080.0,112070.0,0.0052711]
[1756935490567,1.35910533,112080.0,112070.0,0.0052711]
[1756935491124,1.35910533,112080.0,112070.0,0.0062711]
[1756935491483,1.35910533,112080.0,112070.0,0.0072711]
[1756935492610,1.31975946,112080.0,112070.0,0.0072711]
[1756935497019,1.32177946,112080.0,112070.0,0.0072711]
[1756935497399,1.32177946,112080.0,112070.0,0.0042511]
[1756935501200,1.32473946,112080.0,112070.0,0.0021411]
[1756935502282,1.32473946,112080.0,112070.0,0.0042511]
[1756935504179,1.32473946,112080.0,112070.0,0.0021411]
[1756935515461,1.3651144,112080.0,112070.0,0.0021411]
[1756935521721,0.88305519,112080.0,112070.0,0.0021411]
[1756935521926,1.3651144,112080.0,112070.0,0.0021411]
[1756935531611,1.60645895,112080.0,112070.0,0.0021411]
[1756935542721,1.56608401,112080.0,112070.0,0.0021411]
[1756935543092,1.54514519,112080.0,112070.0,0.02897254]
[1756935545122,1.20514519,112080.0,112070.0,0.02897254]
[1756935545487,1.2448247,112080.0,112070.0,0.02897254]
[1756935546766,0.52142094,112080.0,112070.0,0.02897254]
[1756935546965,1.2448247,112080.0,112070.0,0.02897254]
[1756935561329,0.52142094,112080.0,112070.0,0.02897254]
[1756935561541,1.26971259,112080.0,112070.0,0.02897254]
[1756935567731,1.23003308,112080.0,112070.0,0.02897254]
[1756935575206,1.27113158,112080.0,112070.0,0.02897254]
[1756935577324,1.27105158,112080.0,112070.0,0.02897254]
[1756935591620,1.02994239,112080.0,112070.0,0.02897254]
[1756935592398,1.09854239,112080.0,112070.0,0.02897254]
[1756935595259,1.0736545,112080.0,112070.0,0.02897254]
[1756935600592,1.0736545,112080.0,112070.0,0.02897254]
[1756935601435,0.59135993,112080.0,112070.0,0.02897254]
[1756935601647,1.0736145,112080.0,112070.0,0.02897254]
[1756935604379,0.86235302,112080.0,112070.0,0.03412254]
[1756935604627,1.01075302,112080.0,112070.0,0.03412254]
[1756935606653,1.01272302,112080.0,112070.0,0.03096254]
[1756935609418,1.01272302,112080.0,112070.0,0.03412254]
[1756935610134,1.01272302,112080.0,112070.0,0.03096254]
[1756935610400,1.01572302,112080.0,112070.0,0.03096254]
[1756935610585,1.10763901,112080.0,112070.0,0.03096254]
[1756935613351,1.10763901,112080.0,112070.0,0.02897254]
[1756935614213,1.13078107,112080.0,112070.0,0.03106254]
[1756935620345,1.13078107,112080.0,112070.0,0.02897254]
[1756935620670,0.98238107,112080.0,112070.0,0.02897254]
[1756935620826,1.13078107,112080.0,112070.0,0.02897254]
[1756935622112,1.13078107,112080.0,112070.0,0.03106254]
[1756935622661,1.08968257,112080.0,112070.0,0.03106254]
[1756935623550,0.607388,112080.0,112070.0,0.03106254]
[1756935623730,1.08968257,112080.0,112070.0,0.02897254]
[1756935624182,1.13014996,112080.0,112070.0,0.02897254]
[1756935625691,1.1070079,112080.0,112070.0,0.02897254]
[1756935629129,1.01509191,112080.0,112070.0,0.02897254]
[1756935629666,0.53279734,112080.0,112070.0,0.02897254]
[1756935629881,1.01509191,112080.0,112070.0,0.02897254]
[1756935640426,0.94649191,112080.0,112070.0,0.02897254]
[1756935645010,1.01509191,112080.0,112070.0,0.02897254]
[1756935645318,1.1070079,112080.0,112070.0,0.02897254]
[1756935651564,1.34812957,112080.0,112070.0,0.02897254]
[1756935652127,0.62471333,112080.0,112070.0,0.02897254]
[1756935652331,1.34812957,112080.0,112070.0,0.02897254]
[1756935669408,0.62471333,112080.0,112070.0,0.02897254]
[1756935669801,1.34812957,112080.0,112070.0,0.02897254]
[1756935675789,0.98642145,112080.0,112070.0,0.02897254]
[1756935676479,1.34812957,112080.0,112070.0,0.02897254]
[1756935681717,0.98642145,112080.0,112070.0,0.02897254]
[1756935682427,0.91782145,112080.0,112070.0,0.02897254]
[1756935685758,0.91782145,112080.0,112070.0,0.03093254]
[1756935685943,0.91782145,112080.0,112070.0,0.02897254]
[1756935686376,0.91782145,112080.0,112070.0,0.03093254]
[1756935688043,0.91782145,112080.0,112070.0,0.02897254]
[1756935688277,1.27952957,112080.0,112070.0,0.02897254]
[1756935691152,1.18761358,112080.0,112070.0,0.02897254]
[1756935691609,1.25621358,112080.0,112070.0,0.02897254]
[1756935692757,1.21574619,112080.0,112070.0,0.02897254]
[1756935696473,1.14714619,112080.0,112070.0,0.02897254]
[1756935699109,0.78543807,112080.0,112070.0,0.02897254]
[1756935702433,0.81811162,112080.0,112070.0,0.02897254]
[1756935703148,0.42372995,112080.0,112070.0,0.02897254]
[1756935703367,0.78543807,112080.0,112070.0,0.02897254]
[1756935704677,0.42372995,112080.0,112070.0,0.02897254]
[1756935704860,0.78543807,112080.0,112070.0,0.02897254]
[1756935711884,0.85403807,112080.0,112070.0,0.02897254]
[1756935712569,0.89210894,112080.0,112070.0,0.02897254]
[1756935712774,0.93170805,112080.0,112070.0,0.02897254]
[1756935713081,1.29341617,112080.0,112070.0,0.02897254]
[1756935713295,1.2553453,112080.0,112070.0,0.02897254]
[1756935713523,1.01419705,112080.0,112070.0,0.02897254]
[1756935715192,0.53192906,112080.0,112070.0,0.02897254]
[1756935715626,1.01419705,112080.0,112070.0,0.02897254]
[1756935716403,1.10611304,112080.0,112070.0,0.02897254]
[1756935716810,1.06651393,112080.0,112070.0,0.02897254]
[1756935720971,0.58424594,112080.0,112070.0,0.02897254]
[1756935721152,1.06651393,112080.0,112070.0,0.02897254]
[1756935723022,0.97459794,112080.0,112070.0,0.02897254]
[1756935735829,1.33948583,112080.0,112070.0,0.02897254]
[1756935736040,1.84489588,112080.0,112070.0,0.0021411]
[1756935736241,1.86890588,112080.0,112070.0,0.0021411]
[1756935736460,1.91491116,112080.0,112070.0,0.0021411]
[1756935736665,2.00682715,112080.0,112070.0,0.0021411]
[1756935736864,2.00682715,112080.0,112070.0,0.0001411]
[1756935737254,1.98765436,112080.0,112070.0,0.0001411]
[1756935739150,1.98965436,112080.0,112070.0,0.0001411]
[1756935739357,2.00881418,112080.0,112070.0,0.0001411]
[1756935739569,2.00981418,112080.0,112070.0,0.0001411]
[1756935740054,1.52754619,112080.0,112070.0,0.0001411]
[1756935740275,1.99065436,112080.0,112070.0,0.0001411]
[1756935744244,0.56648984,112070.0,112060.0,0.0268325]
[1756935744454,0.6607438,112060.0,112050.0,0.0004]
[1756935744665,0.90317979,112060.0,112050.0,0.00054099]
[1756935744847,0.95478807,112060.0,112050.0,0.00054099]
[1756935745064,0.95782807,112060.0,112050.0,0.00054099]
[1756935745292,1.04974406,112060.0,112050.0,0.00054099]
[1756935751263,0.56747607,112060.0,112050.0,0.00054099]
[1756935751466,1.04974406,112060.0,112050.0,0.00054099]
[1756935755231,0.56747607,112060.0,112050.0,0.00054099]
[1756935755406,1.05074406,112060.0,112050.0,0.00054099]
[1756935757211,1.09129104,112060.0,112050.0,0.00054099]
[1756935759383,1.43129104,112060.0,112050.0,0.00054099]
[1756935763647,1.43129104,112060.0,112050.0,1e-08]
[1756935763854,1.38326109,112060.0,112050.0,1e-08]
[1756935764061,0.66077566,112040.0,112030.0,0.0004]
[1756935764274,1.05898282,112040.0,112030.0,0.0004]
[1756935764478,1.08212488,112040.0,112030.0,0.00244]
[1756935764661,1.08419488,112040.0,112030.0,0.00244]
[1756935764875,1.08419488,112040.0,112030.0,0.00562]
[1756935765035,1.11103678,112040.0,112030.0,0.00562]
[1756935765235,1.11103678,112040.0,112030.0,0.00344]
[1756935765673,1.13592467,112040.0,112030.0,0.00544]
[1756935766259,1.47894467,112040.0,112030.0,0.0034]
[1756935766995,1.47894467,112040.0,112030.0,0.0014]
[1756935767763,1.47894467,112040.0,112030.0,0.0004]
[1756935767968,0.5185236,112030.0,112020.0,0.0004]
[1756935768185,1.38157352,112030.0,112020.0,0.0004]
[1756935768388,1.38666352,112030.0,112020.0,0.0004]
[1756935768954,1.41351034,112030.0,112020.0,0.0004]
[1756935769574,1.41451034,112030.0,112020.0,0.0004]
[1756935769773,1.41351034,112030.0,112020.0,0.0004]
[1756935770223,1.41451034,112030.0,112020.0,0.0004]
[1756935771887,1.45417941,112030.0,112020.0,0.0004]
[1756935775501,1.69620794,112030.0,112020.0,0.0004]
[1756935782639,1.65653887,112030.0,112020.0,0.0004]
[1756935783027,0.93224235,112030.0,112020.0,0.0004]
[1756935783192,1.65653887,112030.0,112020.0,0.0004]
[1756935783390,1.45449892,112030.0,112020.0,0.00562]
[1756935783597,1.5764521,112030.0,112020.0,0.00562]
[1756935784929,1.4276521,112030.0,112020.0,0.00562]
[1756935785163,1.21430384,112030.0,112020.0,0.00562]
[1756935794368,0.85215558,112030.0,112020.0,0.00562]
[1756935794588,1.21430384,112030.0,112020.0,0.00562]
[1756935796628,1.21630384,112030.0,112020.0,0.00562]
[1756935797478,1.21630384,112030.0,112020.0,0.00244]
[1756935798986,1.24064564,112030.0,112020.0,0.00244]
[1756935805463,0.87331738,112030.0,112020.0,0.00558]
[1756935805664,1.23546564,112030.0,112020.0,0.00558]
[1756935807542,1.23746564,112030.0,112020.0,0.00558]
[1756935807752,0.87331738,112030.0,112020.0,0.00558]
[1756935807958,1.23546564,112030.0,112020.0,0.00558]
[1756935810390,1.30610564,112030.0,112020.0,0.00558]
[1756935810597,1.30610564,112030.0,112020.0,0.00244]
[1756935813324,0.87218965,112030.0,112020.0,0.00558]
[1756935813541,0.85082785,112030.0,112020.0,0.00558]
[1756935816786,0.89149025,112030.0,112020.0,0.00558]
[1756935817805,0.89349025,112030.0,112020.0,0.00558]
[1756935819718,0.89349025,112030.0,112020.0,0.00244]
[1756935819923,0.97349288,112030.0,112020.0,0.00244]
[1756935822056,0.97673288,112030.0,112020.0,0.00244]
[1756935825178,0.93607048,112030.0,112020.0,0.00244]
[1756935826360,0.57392222,112030.0,112020.0,0.00244]
[1756935826713,0.93607048,112030.0,112020.0,0.00244]
[1756935827209,0.93607048,112030.0,112020.0,0.0004]
[1756935827767,0.57392222,112030.0,112020.0,0.0004]
[1756935828072,0.93607048,112030.0,112020.0,0.0004]
[1756935830738,0.57392222,112030.0,112020.0,0.0004]
[1756935830960,0.95743228,112030.0,112020.0,0.0004]
[1756935833966,1.31958054,112030.0,112020.0,0.0004]
[1756935834182,1.6839812,112030.0,112020.0,0.0004]
[1756935834405,1.7067712,112030.0,112020.0,0.0004]
[1756935835451,1.733618,112030.0,112020.0,0.0004]
[1756935835611,1.49219327,112030.0,112020.0,0.0004]
[1756935843700,1.46940327,112030.0,112020.0,0.0004]
[1756935845511,1.23756064,112030.0,112020.0,0.00237]
[1756935845712,0.87115998,112030.0,112020.0,0.0055]
[1756935845895,0.48855959,112030.0,112020.0,0.0055]
[1756935846109,0.48855959,112030.0,112020.0,0.03234008]
[1756935846307,0.48855959,112030.0,112020.0,0.03457182]
[1756935847292,0.48859959,112030.0,112020.0,0.21311136]
[1756935847643,0.1795236,112030.0,112020.0,0.21087962]
[1756935847845,0.14952,112030.0,112020.0,0.21087962]
[1756935848265,0.3280436,112030.0,112020.0,0.21087962]
[1756935848478,0.14952,112030.0,112020.0,0.23181844]
[1756935849047,0.3280436,112030.0,112020.0,0.23181844]
[1756935849652,0.14952,112030.0,112020.0,0.23181844]
[1756935849874,0.3280436,112030.0,112020.0,0.23181844]
[1756935857187,0.3280436,112030.0,112020.0,0.0532789]
[1756935864695,0.3280436,112030.0,112020.0,0.23181844]
[1756935865368,0.3280436,112030.0,112020.0,0.0532789]
[1756935865995,0.3332336,112030.0,112020.0,0.0501489]
[1756935866202,0.3280436,112030.0,112020.0,0.0501489]
[1756935866408,0.3280436,112030.0,112020.0,0.0533589]
[1756935870057,0.3280436,112030.0,112020.0,0.23189844]
[1756935870489,0.3300436,112030.0,112020.0,0.02921008]
[1756935870713,0.3300436,112030.0,112020.0,0.02724008]
[1756935870714,0.3332336,112030.0,112020.0,0.02724008]
[1756935871391,0.3280436,112030.0,112020.0,0.03246008]
[1756935873050,0.3300436,112030.0,112020.0,0.03246008]
[1756935875682,0.3332336,112030.0,112020.0,0.02925008]
[1756935875915,0.1847136,112030.0,112020.0,0.02925008]
[1756935876120,0.3331936,112030.0,112020.0,0.02724008]
[1756935876943,0.001,112030.0,112020.0,0.86552197]
[1756935877109,0.001,112030.0,112020.0,0.86329023]
[1756935878268,0.32698767,112040.0,112020.0,0.86329023]
[1756935878490,0.32698767,112040.0,112030.0,0.18075514]
[1756935878695,0.32698767,112040.0,112030.0,0.18396514]
[1756935878924,0.32698767,112040.0,112030.0,0.21062909]
[1756935880293,0.32798767,112040.0,112030.0,0.21062909]
[1756935880491,0.33013767,112040.0,112030.0,0.21062909]
[1756935881802,0.33013767,112040.0,112030.0,0.20741909]
[1756935882008,0.33338767,112040.0,112030.0,0.20741909]
[1756935883150,0.33338767,112040.0,112030.0,0.22835791]
[1756935883151,0.15163,112040.0,112030.0,0.22835791]
[1756935883276,0.14948,112040.0,112030.0,0.7144397]
[1756935885267,0.001,112040.0,112030.0,0.7144397]
[1756935888118,0.33922997,112060.0,112050.0,0.17849174]
[1756935888327,0.43329596,112060.0,112050.0,0.18072288]
[1756935888755,0.43329596,112060.0,112050.0,0.20755417]
[1756935889061,0.43329596,112060.0,112050.0,0.20532303]
[1756935889379,0.43429596,112060.0,112050.0,0.20532303]
[1756935889814,0.43629596,112060.0,112050.0,0.20532303]
[1756935890172,0.00314037,112060.0,112050.0,0.71440364]
[1756935891284,0.00114037,112060.0,112050.0,0.71440364]
[1756935891451,0.00014037,112060.0,112050.0,0.71440364]
[1756935891698,0.00114037,112060.0,112050.0,0.71440364]
[1756935896507,0.00329037,112060.0,112050.0,0.71440364]
[1756935896689,0.00114037,112060.0,112050.0,0.71440364]
[1756935897703,0.00114037,112060.0,112050.0,0.59321194]
[1756935905383,0.00014037,112060.0,112050.0,0.59321194]
[1756935905821,0.00014037,112060.0,112050.0,0.23153185]
[1756935906751,0.00014037,112060.0,112050.0,0.59321194]
[1756935906883,0.00014037,112060.0,112050.0,0.23153185]
[1756935907706,0.00014037,112060.0,112050.0,0.59321194]
[1756935907961,0.00014037,112060.0,112050.0,0.23153185]
[1756935908165,0.00014037,112060.0,112050.0,0.37993185]
[1756935908365,0.00014037,112060.0,112050.0,0.74161194]
[1756935910557,0.00014037,112060.0,112050.0,0.37993185]
[1756935916129,0.00014037,112060.0,112050.0,0.23153185]
[1756935916347,0.00014037,112060.0,112050.0,0.37993185]
[1756935917206,0.00014037,112060.0,112050.0,0.23153185]
[1756935917437,0.00014037,112060.0,112050.0,0.37993185]
[1756935919336,0.00219037,112060.0,112050.0,0.37672185]
[1756935919638,0.00532037,112060.0,112050.0,0.37672185]
[1756935920366,0.00219037,112060.0,112050.0,0.37672185]
[1756935921493,0.00219037,112060.0,112050.0,0.37975185]
[1756935922143,0.00532037,112060.0,112050.0,0.37672185]
[1756935922350,0.00219037,112060.0,112050.0,0.37672185]
[1756935922566,0.00532037,112060.0,112050.0,0.37466185]
[1756935924333,0.00532037,112060.0,112050.0,0.37682185]
[1756935925654,0.00219037,112060.0,112050.0,0.37682185]
[1756935925876,0.00014037,112060.0,112050.0,0.74153194]
[1756935934495,0.00219037,112060.0,112050.0,0.37985185]
[1756935934702,0.00014037,112060.0,112050.0,0.37985185]
[1756935934879,0.00014037,112060.0,112050.0,0.74153194]
[1756935937326,0.00532037,112060.0,112050.0,0.22626185]
[1756935937550,0.00532037,112060.0,112050.0,0.02683129]
[1756935937551,0.90715636,112060.0,112050.0,0.02683129]
[1756935938004,0.17849174,112050.0,112040.0,0.15092]
[1756935938221,0.5475783,112050.0,112040.0,0.17775312]
[1756935938442,0.5475783,112050.0,112030.0,0.1785236]
[1756935938443,0.17850767,112040.0,112030.0,0.1785236]
[1756935938663,0.18163767,112040.0,112030.0,0.3296436]
[1756935938919,0.00527,112040.0,112030.0,0.3318436]
[1756935939138,0.00214,112040.0,112030.0,0.35867671]
[1756935939353,0.00514,112040.0,112030.0,0.35863671]
[1756935939570,0.00514,112040.0,112030.0,0.35951671]
[1756935939784,0.00514,112040.0,112030.0,0.36163671]
[1756935940035,0.00214,112040.0,112030.0,0.36363671]
[1756935940257,0.18364767,112040.0,112030.0,0.03183311]
[1756935940511,0.21986172,112040.0,112030.0,0.03183311]
[1756935940743,0.58266172,112040.0,112030.0,0.00175]
[1756935941178,1.67679922,112040.0,112030.0,0.00175]
[1756935941390,0.59175895,112040.0,112030.0,0.00175]
[1756935941843,0.1785236,112030.0,112020.0,0.0004]
[1756935942048,0.56523016,112030.0,112020.0,0.0004]
[1756935942266,0.2064636,112030.0,112020.0,0.0004]
[1756935942482,0.29837959,112030.0,112020.0,0.0004]
[1756935942708,0.66005968,112030.0,112020.0,0.0004]
[1756935942934,0.29837959,112030.0,112020.0,0.0004]
[1756935943178,0.67017198,112030.0,112020.0,0.0024]
[1756935943396,0.30849189,112030.0,112020.0,0.0024]
[1756935943615,0.67017198,112030.0,112020.0,0.0024]